bitfinex-derivatives/quotes_SOLF0:USTF0_20241230
["timestamp","ask_amount","ask_price","bid_price","bid_amount"]
[1735593699953,2.5802,194.07,194.04,2.5804]
[1735593700758,2.5802,194.07,194.03,8.162148]
[1735593700959,2.5802,194.07,194.03,10.742748]
[1735593702053,2.5805,194.04,193.99,1.5934]
[1735593702260,5.5605,194.04,193.99,8.162148]
[1735593704553,5.5605,194.04,194.01,2.5809]
[1735593704757,2.5809,194.02,193.98,8.162148]
[1735593704959,11.142148,194.04,193.98,10.743448]
[1735593705254,11.142148,194.04,193.98,8.162148]
[1735593705453,8.162148,194.02,193.96,10.743548]
[1735593705653,8.162148,194.02,193.94,8.162148]
[1735593706059,2.5813,193.98,193.94,8.162148]
[1735593707156,2.5813,193.98,193.95,2.5816]
[1735593707454,2.98,193.99,193.93,2.5819]
[1735593707661,8.162148,193.98,193.9,8.162148]
[1735593707959,2.5818,193.95,193.9,10.744348]
[1735593708159,2.98,193.94,193.9,10.744348]
[1735593708757,2.582,193.93,193.89,2.5825]
[1735593712064,2.5821,193.92,193.89,2.5825]
[1735593712759,2.582,193.93,193.89,2.5825]
[1735593716263,11.142148,193.94,193.88,11.108538]
[1735593717263,11.142148,193.94,193.89,2.5824]
[1735593717858,13.724048,193.94,193.89,2.5824]
[1735593718163,5.5619,193.94,193.9,8.162148]
[1735593718365,2.98,193.94,193.91,2.5822]
[1735593718767,2.98,194.0,193.96,2.5814]
[1735593718961,2.98,193.99,193.96,8.162148]
[1735593719361,2.98,193.99,193.97,2.5814]
[1735593720665,2.98,193.99,193.96,8.162148]
[1735593720857,2.98,193.99,193.94,8.162148]
[1735593721058,8.162148,193.96,193.9,8.162148]
[1735593721365,8.162148,193.94,193.89,2.5825]
[1735593721557,2.98,193.93,193.88,0.36379]
[1735593722865,8.162148,193.92,193.88,0.36379]
[1735593723367,2.5823,193.91,193.88,0.36379]
[1735593724060,2.5823,193.91,193.88,2.94629]
[1735593724266,2.5823,193.9,193.88,0.36379]
[1735593724566,2.98,193.91,193.88,0.36379]
[1735593724764,2.5825,193.89,193.88,0.36379]
[1735593725466,2.98,193.91,193.82,15.37724024]
[1735593725467,2.5829,193.86,193.82,2.5834]
[1735593725764,5.5629,193.86,193.82,2.5834]
[1735593726858,2.98,193.86,193.82,12.79384024]
[1735593727463,2.98,193.86,193.83,2.5832]
[1735593729264,5.5629,193.86,193.83,2.5832]
[1735593730169,5.5629,193.86,193.76,4.6284]
[1735593730170,2.5833,193.83,193.79,2.5838]
[1735593730369,2.98,193.86,193.78,12.79384024]
[1735593730863,2.98,193.86,193.83,2.5831]
[1735593731071,2.98,193.86,193.78,12.79384024]
[1735593731471,2.5834,193.83,193.79,2.5837]
[1735593732970,2.5834,193.83,193.8,2.5836]
[1735593734164,2.5832,193.84,193.8,2.5836]
[1735593734362,2.5832,193.84,193.78,12.79384024]
[1735593734562,2.98,193.87,193.81,12.79384024]
[1735593735174,2.583,193.86,193.83,2.5832]
[1735593735374,2.98,193.87,193.78,12.79384024]
[1735593735876,2.583,193.85,193.82,2.5834]
[1735593736774,2.5831,193.84,193.81,2.5835]
[1735593743885,2.98,193.87,193.81,2.5835]
[1735593744182,12.79384024,193.86,193.76,12.79384024]
[1735593744376,12.79384024,193.86,193.73,21.02709205]
[1735593744377,8.19517077,193.81,193.73,21.02709205]
[1735593744576,2.5841,193.77,193.74,2.5844]
[1735593745580,2.5842,193.76,193.73,23.61169205]
[1735593745981,2.98,193.75,193.73,21.02709205]
[1735593746988,5.5645,193.75,193.73,21.02709205]
[1735593748391,2.5845,193.74,193.73,21.02709205]
[1735593750687,2.5845,193.74,193.73,17.14029205]
[1735593751887,15.79229826,193.75,193.62,3.1058]
[1735593752091,12.81229826,193.71,193.62,3.1058]
[1735593752292,2.98,193.7,193.62,1.5247]
[1735593752492,2.5856,193.66,193.62,4.1107]
[1735593752793,2.98,193.65,193.62,1.5247]
[1735593754191,2.5863,193.61,193.51,7.16175305]
[1735593754395,2.98,193.65,193.55,12.81229826]
[1735593754898,3.1,193.64,193.58,12.81229826]
[1735593755099,3.1,193.65,193.58,12.81229826]
[1735593755299,3.1,193.65,193.61,2.5861]
[1735593757196,3.1,193.65,193.62,2.5861]
[1735593757898,15.91229826,193.65,193.53,16.81777279]
[1735593758095,15.91229826,193.65,193.53,12.81229826]
[1735593758296,15.91229826,193.65,193.45,28.64701222]
[1735593758496,12.81229826,193.62,193.53,2.5871]
[1735593758799,15.91229826,193.65,193.53,12.81229826]
[1735593758999,15.91229826,193.65,193.55,2.5869]
[1735593759401,12.81229826,193.62,193.5,12.81229826]
[1735593759601,2.5867,193.58,193.53,2.5872]
[1735593759896,2.5867,193.58,193.5,12.81229826]
[1735593760101,2.5867,193.58,193.52,2.5874]
[1735593760297,2.5867,193.58,193.5,12.81229826]
[1735593760801,2.5869,193.56,193.5,12.81229826]
[1735593761005,2.5869,193.56,193.47,4.7208]
[1735593761392,2.5869,193.56,193.51,2.5874]
[1735593763004,2.5869,193.56,193.52,2.5874]
[1735593764300,3.1,193.6,193.48,12.81229826]
[1735593764505,3.1,193.59,193.48,12.81229826]
[1735593766309,3.1,193.59,193.55,2.587]
[1735593767208,5.6866,193.59,193.55,2.587]
[1735593767507,3.1,193.59,193.54,2.5871]
[1735593768307,2.5867,193.58,193.54,2.5871]
[1735593768809,2.5867,193.58,193.53,8.2144408]
[1735593768999,3.55108273,193.66,193.55,8.2144408]
[1735593769203,8.2144408,193.63,193.57,8.2144408]
[1735593769605,11.3144408,193.63,193.57,8.2144408]
[1735593770405,2.5861,193.62,193.58,2.5865]
[1735593770799,3.55108273,193.66,193.59,8.2144408]
[1735593771008,3.55108273,193.66,193.63,2.5859]
[1735593771501,3.55108273,193.66,193.64,2.5858]
[1735593771701,3.1,193.67,193.63,8.2144408]
[1735593772101,3.1,193.67,193.66,2.5855]
[1735593772508,8.2144408,193.7,193.65,8.2144408]
[1735593772704,3.1,193.71,193.67,8.2144408]
[1735593773104,5.6846,193.73,193.67,8.2144408]
[1735593773308,2.5846,193.73,193.67,8.2144408]
[1735593773509,8.2144408,193.74,193.67,8.2144408]
[1735593773804,11.3144408,193.74,193.69,8.2144408]
[1735593774311,5.6845,193.74,193.66,12.8140779]
[1735593774506,5.6845,193.74,193.67,1.6152]
[1735593775009,3.1,193.74,193.71,2.5849]
[1735593777003,3.1,193.74,193.69,2.5851]
[1735593777506,2.5847,193.73,193.68,2.5852]
[1735593780714,12.8140779,193.87,193.7,12.8140779]
[1735593781017,12.8140779,193.84,193.73,12.8140779]
[1735593781215,3.1,193.83,193.71,3.1]
[1735593781416,2.5839,193.79,193.73,2.5845]
[1735593781710,3.1,193.83,193.71,3.1]
[1735593782113,2.5838,193.79,193.71,3.1]
[1735593782808,2.5838,193.79,193.73,2.5845]
[1735593783014,2.5838,193.79,193.71,3.1]
[1735593783610,12.8140779,193.84,193.73,12.8140779]
[1735593783816,3.1,193.83,193.76,12.8140779]
[1735593784018,3.1,193.85,193.77,1.5555]
[1735593784318,2.5833,193.84,193.79,2.5838]
[1735593784816,2.5833,193.83,193.79,2.5838]
[1735593785614,2.5831,193.85,193.8,2.5836]
[1735593785812,12.8140779,193.9,193.77,3.0313]
[1735593786115,3.1,193.89,193.79,12.8140779]
[1735593786911,2.5832,193.84,193.8,2.5837]
[1735593788430,2.5836,193.81,193.77,5.6153]
[1735593789023,2.5836,193.81,193.78,2.5839]
[1735593789222,3.1,193.84,193.78,2.5839]
[1735593789418,2.5833,193.83,193.78,2.5839]
[1735593789715,3.1,193.84,193.78,2.5839]
[1735593790422,2.5835,193.82,193.78,2.5839]
[1735593790624,3.1,193.84,193.77,2.584]
[1735593791920,2.5836,193.81,193.77,2.584]
[1735593793425,3.1,193.84,193.77,2.584]
[1735593793626,2.5837,193.81,193.77,2.584]
[1735593793826,3.1,193.84,193.77,2.584]
[1735593794624,15.9140779,193.84,193.77,2.584]
[1735593795029,15.9140779,193.84,193.73,12.8140779]
[1735593795225,2.5839,193.79,193.75,2.5842]
[1735593795425,5.6839,193.79,193.75,2.5842]
[1735593795627,3.1,193.79,193.75,2.5842]
[1735593796628,2.584,193.78,193.75,2.5842]
[1735593797024,2.584,193.78,193.74,2.5845]
[1735593799927,2.584,193.78,193.75,2.5843]
[1735593800330,2.584,193.78,193.75,10.78072674]
[1735593802839,8.19642674,193.77,193.68,1.5089]
[1735593803022,8.19642674,193.77,193.71,8.19642674]
[1735593803228,8.19642674,193.75,193.69,8.19642674]
[1735593803527,8.19642674,193.73,193.67,8.19642674]
[1735593803723,3.1,193.72,193.67,8.19642674]
[1735593803924,2.5852,193.69,193.67,8.19642674]
[1735593804228,8.19642674,193.71,193.65,8.19642674]
[1735593804534,8.19642674,193.67,193.61,8.19642674]
[1735593804734,3.1,193.66,193.59,8.19642674]
[1735593804927,8.19642674,193.65,193.59,8.19642674]
[1735593805533,2.586,193.63,193.59,8.19642674]
[1735593805732,8.19642674,193.65,193.57,4.1839]
[1735593806034,8.19642674,193.65,193.58,8.19642674]
[1735593806235,2.5859,193.63,193.57,4.1839]
[1735593806836,2.5859,193.63,193.57,1.5972]
[1735593807033,2.5859,193.63,193.58,2.5865]
[1735593808936,4.587,193.66,193.55,12.82946847]
[1735593809136,6.1389,193.66,193.55,12.82946847]
[1735593809930,1.487,193.66,193.55,12.82946847]
[1735593810137,3.1,193.65,193.58,12.82946847]
[1735593810435,3.1,193.65,193.62,2.5859]
[1735593810624,3.1,193.67,193.58,12.82946847]
[1735593811027,2.5855,193.66,193.61,2.5861]
[1735593811231,3.1,193.67,193.58,12.82946847]
[1735593812438,2.5858,193.64,193.6,2.5863]
[1735593812739,2.5858,193.64,193.58,12.82946847]
[1735593813742,2.5858,193.64,193.6,2.5862]
[1735593813943,2.5856,193.66,193.58,12.82946847]
[1735593814639,2.5857,193.65,193.61,2.5861]
[1735593816040,2.5856,193.66,193.62,2.586]
[1735593818041,2.5857,193.65,193.62,2.586]
[1735593819451,2.5858,193.64,193.6,2.5863]
[1735593821553,2.5858,193.64,193.58,12.82946847]
[1735593822554,2.5858,193.64,193.61,2.5862]
[1735593824354,3.06,193.67,193.64,2.5858]
[1735593824550,86.69823565,193.72,193.61,12.82946847]
[1735593824751,2.5853,193.68,193.64,2.5858]
[1735593825754,3.06,193.71,193.64,2.5858]
[1735593825962,3.06,193.71,193.62,1.5331]
[1735593825963,2.5855,193.67,193.63,2.5858]
[1735593826153,86.69823565,193.72,193.62,1.5331]
[1735593826353,11.26252076,193.74,193.68,8.20252076]
[1735593826857,8.20252076,193.72,193.62,3.0884]
[1735593827157,8.20252076,193.72,193.65,8.20252076]
[1735593827659,2.5852,193.69,193.66,2.5855]
[1735593827853,8.20252076,193.72,193.62,3.0884]
[1735593828056,8.20252076,193.68,193.62,9.73562076]
[1735593828259,11.26252076,193.68,193.62,9.73562076]
[1735593828450,2.5856,193.66,193.63,2.5859]
[1735593833355,3.06,193.68,193.62,9.73562076]
[1735593833555,3.06,193.68,193.64,8.20252076]
[1735593833860,8.20252076,193.7,193.64,8.20252076]
[1735593834060,2.5853,193.68,193.65,2.5855]
[1735593835058,2.5853,193.68,193.66,2.5855]
[1735593840562,2.5853,193.68,193.66,10.78802076]
[1735593840766,2.5852,193.69,193.66,10.78802076]
[1735593842663,28.14830302,193.77,193.68,8.20252076]
[1735593842864,3.06,193.73,193.7,8.20252076]
[1735593843161,2.5849,193.71,193.7,8.20252076]
[1735593843577,7.03707575,193.78,193.7,8.20252076]
[1735593843763,9.62097575,193.78,193.75,10.78682076]
[1735593844567,2.5839,193.78,193.75,10.78682076]
[1735593845567,5.6038,193.8,193.75,8.20252076]
[1735593845973,3.02,193.8,193.75,8.20252076]
[1735593847668,2.584,193.78,193.75,8.20252076]
[1735593848168,2.5838,193.79,193.75,8.20252076]
[1735593849373,2.5838,193.79,193.75,10.78682076]
[1735593854082,2.5839,193.79,193.75,10.78682076]
[1735593854571,1.5027,193.85,193.77,8.20252076]
[1735593854775,8.20252076,193.83,193.77,10.78652076]
[1735593855471,11.22252076,193.83,193.77,10.78652076]
[1735593856172,3.02,193.83,193.77,10.78652076]
[1735593856370,11.22252076,193.83,193.77,10.78652076]
[1735593856871,2.5837,193.8,193.77,10.78652076]
[1735593860771,2.5837,193.8,193.77,8.20252076]
[1735593860976,2.5837,193.8,193.78,2.5839]
[1735593861671,2.5836,193.81,193.78,2.5839]
[1735593861873,11.22252076,193.83,193.77,8.20252076]
[1735593862072,8.20252076,193.81,193.72,1.4846]
[1735593862277,8.20252076,193.81,193.74,8.20252076]
[1735593863180,8.20252076,193.81,193.74,10.78692076]
[1735593863986,2.5841,193.77,193.74,10.78692076]
[1735593864178,8.20252076,193.81,193.76,10.78662076]
[1735593864981,11.22252076,193.83,193.78,8.20252076]
[1735593865679,2.5837,193.8,193.78,10.78642076]
[1735593868782,8.20252076,193.82,193.72,1.4846]
[1735593869087,2.5839,193.79,193.76,2.5841]
[1735593872991,2.5842,193.77,193.74,2.5844]
[1735593873488,2.5842,193.77,193.74,10.78692076]
[1735593874698,2.5837,193.8,193.77,2.584]
[1735593874894,8.20252076,193.82,193.76,8.20252076]
[1735593875792,2.5837,193.8,193.78,2.5839]
[1735593875991,2.5837,193.8,193.76,8.20252076]
[1735593877487,2.5837,193.8,193.77,2.584]
[1735593882792,8.20252076,193.8,193.72,1.4846]
[1735593882992,8.20252076,193.78,193.72,1.4846]
[1735593883296,8.20252076,193.8,193.73,8.20252076]
[1735593883502,2.584,193.78,193.74,2.5844]
[1735593883799,2.584,193.78,193.73,8.20252076]
[1735593884399,2.584,193.78,193.75,2.5843]
[1735593884795,10.78652076,193.78,193.71,1.5947]
[1735593885103,8.20252076,193.78,193.71,9.79722076]
[1735593885294,8.20252076,193.78,193.73,8.20252076]
[1735593885495,10.78632076,193.8,193.75,8.20252076]
[1735593886006,10.78632076,193.8,193.77,2.584]
[1735593886301,2.5838,193.79,193.75,8.20252076]
[1735593886499,8.20252076,193.8,193.75,8.20252076]
[1735593886700,8.20252076,193.8,193.74,2.5845]
[1735593887294,2.5841,193.77,193.73,8.20252076]
[1735593887493,5.5841,193.77,193.73,8.20252076]
[1735593888294,2.5842,193.76,193.73,8.20252076]
[1735593891014,2.5842,193.76,193.73,10.78702076]
[1735593891414,3.0,193.77,193.71,1.5947]
[1735593891612,3.0,193.77,193.75,8.20252076]
[1735593892215,5.5841,193.77,193.75,8.20252076]
[1735593896813,3.0,193.77,193.75,8.20252076]
[1735593897011,3.0,193.77,193.75,10.78672076]
[1735593897412,3.0,193.77,193.75,8.20252076]
[1735593898216,8.20252076,193.82,193.76,2.5842]
[1735593898418,2.5839,193.79,193.76,2.5842]
[1735593900509,2.5835,193.82,193.79,2.5838]
[1735593900709,3.0,193.83,193.79,10.78632076]
[1735593901522,2.5835,193.81,193.79,10.78632076]
[1735593902519,2.5835,193.81,193.79,8.20252076]
[1735593902718,11.59670498,193.84,193.79,8.20252076]
[1735593902919,8.59670498,193.86,193.83,8.20252076]
[1735593903619,2.5829,193.87,193.83,8.20252076]
[1735593903918,2.5829,193.87,193.84,2.5831]
[1735593904622,2.5829,193.86,193.83,10.78572076]
[1735593905627,2.5831,193.84,193.83,8.20252076]
[1735593905825,8.20252076,193.87,193.81,8.20252076]
[1735593906725,2.5834,193.83,193.81,8.20252076]
[1735593906914,8.20252076,193.87,193.81,8.20252076]
[1735593907524,2.5831,193.85,193.81,10.78602076]
[1735593908021,2.5831,193.85,193.82,2.5834]
[1735593908221,2.5831,193.85,193.83,8.20252076]
[1735593908819,2.5829,193.86,193.83,10.78572076]
[1735593909020,6.64396728,193.88,193.83,8.20252076]
[1735593909915,2.5831,193.85,193.83,8.20252076]
[1735593910115,6.64396728,193.88,193.83,8.20252076]
[1735593910315,6.64396728,193.88,193.76,3.0522]
[1735593910514,2.5834,193.83,193.81,8.20252076]
[1735593911727,2.5834,193.82,193.81,8.20252076]
[1735593912629,2.5828,193.87,193.81,8.20252076]
[1735593912822,3.64396728,193.88,193.76,3.0522]
[1735593913018,3.64396728,193.88,193.84,8.20252076]
[1735593913225,2.5831,193.85,193.82,8.20252076]
[1735593913429,3.64396728,193.88,193.82,8.20252076]
[1735593913624,8.20252076,193.85,193.79,8.20252076]
[1735593913829,2.5837,193.81,193.79,8.20252076]
[1735593921927,2.5834,193.83,193.79,10.78622076]
[1735593922132,3.0,193.85,193.81,8.20252076]
[1735593923520,2.5834,193.82,193.81,8.20252076]
[1735593929135,3.64396728,193.88,193.81,8.20252076]
[1735593929334,2.5828,193.87,193.86,8.20252076]
[1735593929533,3.0,193.88,193.86,8.20252076]
[1735593929932,2.5826,193.88,193.86,8.20252076]
[1735593930128,3.0,193.89,193.84,8.20252076]
[1735593930330,2.5828,193.87,193.83,2.5831]
[1735593930636,3.0,193.86,193.83,8.20252076]
[1735593931038,2.5831,193.85,193.83,8.20252076]
[1735593931228,3.0,193.86,193.81,8.20252076]
[1735593932532,2.5833,193.83,193.81,8.20252076]
[1735593932733,3.0,193.86,193.81,8.20252076]
[1735593933838,8.20252076,193.85,193.78,8.20252076]
[1735593934339,2.5836,193.81,193.78,10.78642076]
[1735593937343,2.5836,193.81,193.8,8.20252076]
[1735593954156,8.20252076,193.81,193.75,28.64701222]
[1735593954352,8.20252076,193.81,193.75,36.84953298]
[1735593955354,2.5842,193.76,193.75,8.20252076]
[1735593959956,3.0,193.77,193.69,9.74675305]
[1735593959957,2.5849,193.71,193.69,9.74675305]
[1735593960358,2.5849,193.71,193.7,8.20252076]
[1735593961163,11.20252076,193.77,193.7,8.20252076]
[1735593961462,2.5848,193.72,193.7,8.20252076]
[1735593962962,2.5848,193.72,193.7,10.78752076]
[1735593963166,11.20252076,193.77,193.7,2.585]
[1735593963364,2.5847,193.73,193.72,8.20252076]
[1735593965772,2.5847,193.73,193.7,2.585]
[1735593966065,8.20252076,193.75,193.69,8.20252076]
[1735593968062,2.5849,193.72,193.69,8.20252076]
[1735593968366,2.98,193.72,193.69,10.78762076]
[1735593969568,2.5849,193.71,193.69,10.78762076]
[1735593970664,2.5849,193.71,193.69,8.20252076]
[1735593971966,2.98,193.72,193.62,4.7447]
[1735593972165,2.98,193.72,193.68,8.20252076]
[1735593972363,2.98,193.72,193.63,61.38064027]
[1735593972574,11.18252076,193.72,193.65,8.20252076]
[1735593972767,11.18252076,193.72,193.63,61.38064027]
[1735593972974,8.20252076,193.72,193.63,61.38064027]
[1735593973172,2.98,193.71,193.67,8.20252076]
[1735593973369,2.98,193.7,193.65,8.20252076]
[1735593973570,2.98,193.7,193.64,8.20252076]
[1735593973770,8.20252076,193.69,193.64,8.20252076]
[1735593974071,8.20252076,193.69,193.62,9.74192076]
[1735593974271,8.20252076,193.69,193.62,1.5394]
[1735593974466,2.5856,193.66,193.62,8.20252076]
[1735593974766,2.98,193.65,193.62,8.20252076]
[1735593975675,5.5657,193.65,193.64,8.20252076]
[1735593975879,3.6465313,193.73,193.64,8.20252076]
[1735593976175,9.2111313,193.73,193.72,8.20252076]
[1735593976370,6.2311313,193.73,193.72,8.20252076]
[1735593976570,9.2111313,193.73,193.72,8.20252076]
[1735593977875,2.5849,193.71,193.7,8.20252076]
[1735593978272,6.6265313,193.73,193.6,28.64701222]
[1735593978473,2.585,193.7,193.68,8.20252076]
[1735593985586,6.6265313,193.73,193.68,8.20252076]
[1735593985781,8.20252076,193.7,193.6,7.16175305]
[1735593986081,8.20252076,193.68,193.62,8.20252076]
[1735593986284,2.98,193.67,193.62,8.20252076]
[1735593986878,8.20252076,193.68,193.62,8.20252076]
[1735593986879,2.98,193.66,193.62,8.20252076]
[1735593987882,2.5858,193.65,193.62,8.20252076]
[1735593988682,2.5857,193.65,193.62,8.20252076]
[1735593992088,2.98,193.66,193.62,8.20252076]
[1735593992292,2.5856,193.66,193.64,8.20252076]
[1735593993891,2.98,193.67,193.64,8.20252076]
[1735593994194,2.5857,193.65,193.64,8.20252076]
[1735593995900,2.98,193.67,193.64,8.20252076]
[1735593997291,2.5856,193.66,193.64,8.20252076]
[1735594001094,2.5857,193.65,193.64,8.20252076]
[1735594008205,5.5654,193.67,193.65,2.5856]
[1735594008403,8.20252076,193.72,193.66,8.20252076]
[1735594008605,3.6465313,193.73,193.68,8.20252076]
[1735594008798,2.585,193.71,193.7,8.20252076]
[1735594010302,2.5851,193.7,193.68,8.20252076]
[1735594010504,2.98,193.72,193.68,8.20252076]
[1735594011003,11.18252076,193.72,193.65,8.20252076]
[1735594011906,8.20252076,193.7,193.65,8.20252076]
[1735594012096,2.5855,193.66,193.63,10.78842076]
[1735594014103,2.98,193.67,193.58,28.64701222]
[1735594014307,8.20252076,193.66,193.61,8.20252076]
[1735594015708,2.5859,193.63,193.61,10.78872076]
[1735594015904,2.98,193.64,193.61,8.20252076]
[1735594016103,2.98,193.64,193.63,8.20252076]
[1735594017407,2.98,193.69,193.63,8.20252076]
[1735594017610,3.6465313,193.73,193.63,8.20252076]
[1735594017803,2.5847,193.72,193.71,8.20252076]
[1735594018005,5.5647,193.72,193.71,8.20252076]
[1735594018204,5.5647,193.72,193.69,2.5851]
[1735594018205,2.98,193.72,193.64,1.5859]
[1735594018404,2.98,193.72,193.69,8.20252076]
[1735594018605,2.5849,193.71,193.68,2.5852]
[1735594018909,2.5849,193.71,193.7,8.20252076]
[1735594020704,5.5648,193.72,193.7,8.20252076]
[1735594021004,2.98,193.72,193.7,8.20252076]
[1735594021603,2.5849,193.71,193.7,8.20252076]
[1735594022607,6.2312313,193.73,193.7,8.20252076]
[1735594022812,8.20252076,193.81,193.72,8.20252076]
[1735594023007,8.20252076,193.81,193.75,8.20252076]
[1735594023008,2.98,193.79,193.75,8.20252076]
[1735594024412,2.5842,193.77,193.75,8.20252076]
[1735594029911,2.98,193.78,193.75,8.20252076]
[1735594030114,5.564,193.78,193.75,8.20252076]
[1735594030622,2.98,193.8,193.77,8.20252076]
[1735594030812,2.98,193.8,193.79,8.20252076]
[1735594031112,8.20252076,193.84,193.79,8.20252076]
[1735594031415,2.98,193.83,193.79,8.20252076]
[1735594031817,2.5836,193.81,193.79,8.20252076]
[1735594032018,2.98,193.83,193.77,8.20252076]
[1735594032717,2.5838,193.8,193.77,8.20252076]
[1735594037124,2.5838,193.8,193.79,8.20252076]
[1735594042325,5.5636,193.81,193.79,8.20252076]
[1735594043924,2.98,193.81,193.79,8.20252076]
[1735594044128,2.5837,193.8,193.79,8.20252076]
[1735594046431,8.20252076,193.8,193.72,1.5431]
[1735594046627,8.20252076,193.78,193.73,8.20252076]
[1735594046930,2.5846,193.74,193.71,10.78732076]
[1735594048329,2.5847,193.73,193.71,8.20252076]
[1735594048631,11.18252076,193.76,193.69,8.20252076]
[1735594049430,8.20252076,193.74,193.65,1.5296]
[1735594049635,8.20252076,193.74,193.67,8.20252076]
[1735594050336,8.20252076,193.7,193.63,8.20252076]
[1735594050632,2.98,193.69,193.63,8.20252076]
[1735594051533,2.5855,193.67,193.63,10.78842076]
[1735594052535,2.5855,193.67,193.63,2.5859]
[1735594052835,2.5855,193.67,193.64,8.20252076]
[1735594053230,5.5655,193.67,193.64,8.20252076]
[1735594054132,5.5655,193.67,193.64,10.78832076]
[1735594056641,3.0682,193.73,193.66,8.20252076]
[1735594056837,2.98,193.72,193.68,8.20252076]
[1735594057141,8.20252076,193.76,193.7,8.20252076]
[1735594057338,2.98,193.75,193.7,8.20252076]
[1735594058835,2.585,193.71,193.68,8.20252076]
[1735594062237,2.98,193.7,193.65,2.5856]
[1735594062436,11.18252076,193.7,193.65,8.20252076]
[1735594063841,2.5852,193.69,193.65,8.20252076]
[1735594064141,11.18252076,193.7,193.65,8.20252076]
[1735594064541,2.5854,193.68,193.65,8.20252076]
[1735594066942,2.5854,193.67,193.65,8.20252076]
[1735594068340,2.5855,193.66,193.64,8.20252076]
[1735594068543,2.5855,193.66,193.58,1.5274]
[1735594068739,2.5858,193.65,193.63,8.20252076]
[1735594069040,2.98,193.65,193.61,8.20252076]
[1735594070241,2.5858,193.64,193.61,8.20252076]
[1735594070444,2.98,193.65,193.61,8.20252076]
[1735594071040,2.5861,193.62,193.61,8.20252076]
[1735594072042,2.586,193.63,193.61,8.20252076]
[1735594073239,2.5861,193.62,193.59,2.5864]
[1735594073544,2.5861,193.62,193.6,8.20252076]
[1735594073943,2.5861,193.62,193.6,10.78882076]
[1735594074143,2.586,193.63,193.6,10.78882076]
[1735594074449,2.586,193.63,193.6,2.5863]
[1735594074639,2.586,193.63,193.61,8.20252076]
[1735594079146,2.586,193.63,193.61,10.78872076]
[1735594081146,2.586,193.63,193.61,2.5862]
[1735594082150,2.586,193.63,193.58,1.5274]
[1735594082347,2.5862,193.61,193.57,8.20252076]
[1735594082650,8.20252076,193.6,193.53,28.64701222]
[1735594082842,2.5871,193.55,193.53,28.64701222]
[1735594083043,2.98,193.54,193.53,28.64701222]
[1735594083250,2.98,193.54,193.51,31.23451222]
[1735594083450,2.98,193.54,193.51,39.43703298]
[1735594084043,2.98,193.54,193.51,36.84953298]
[1735594084449,2.98,193.54,193.51,8.20252076]
[1735594084849,2.5873,193.53,193.5,10.79022076]
[1735594085249,2.5873,193.53,193.45,28.64701222]
[1735594085551,2.5873,193.53,193.48,10.79042076]
[1735594085748,2.5873,193.53,193.48,2.5879]
[1735594085951,2.5875,193.52,193.48,2.5879]
[1735594086647,11.18252076,193.54,193.47,8.20252076]
[1735594087152,8.20252076,193.52,193.47,8.20252076]
[1735594087350,2.98,193.54,193.47,8.20252076]
[1735594087551,2.5876,193.51,193.47,8.20252076]
[1735594088552,3.06,193.5,193.47,8.20252076]
[1735594089053,3.06,193.5,193.47,10.79052076]
[1735594089355,8.20252076,193.53,193.47,8.20252076]
[1735594089556,8.20252076,193.55,193.49,8.20252076]
[1735594090056,3.06,193.54,193.51,8.20252076]
[1735594090852,90.40089295,193.58,193.51,8.20252076]
[1735594091157,3.06,193.57,193.55,8.20252076]
[1735594091354,3.06,193.57,193.56,2.5869]
[1735594093954,0.6355,193.57,193.56,2.5869]
[1735594094957,3.06,193.61,193.55,8.20252076]
[1735594095155,3.06,193.61,193.57,2.5867]
[1735594095357,5.6462,193.61,193.57,2.5867]
[1735594098249,3.06,193.61,193.56,8.20252076]
[1735594098449,3.06,193.61,193.49,7.16175305]
[1735594098450,2.5867,193.58,193.54,10.78952076]
[1735594098650,11.26252076,193.61,193.54,10.78952076]
[1735594099761,2.5867,193.58,193.54,10.78952076]